bitfinex/quotes_ETHUSD_20251010
["timestamp","ask_amount","ask_price","bid_price","bid_amount"]
[1760135844167,1.27738624,3889.4,3887.5,6.15]
[1760135844465,1.23686831,3889.2,3887.5,6.15]
[1760135844668,1.23170397,3889.0,3887.5,4.31944234]
[1760135844867,1.23314498,3888.8,3887.5,3.86800294]
[1760135845044,0.76561351,3888.7,3887.5,4.3369403]
[1760135845366,0.4282,3888.6,3887.5,3.69803852]
[1760135845567,0.26100803,3888.5,3887.5,3.69803852]
[1760135845871,0.4282,3888.4,3887.5,3.69803852]
[1760135846075,0.68920803,3888.3,3887.5,3.39987849]
[1760135846365,1.20688931,3888.1,3887.5,4.32646658]
[1760135846589,1.20811433,3887.9,3887.5,3.95123414]
[1760135846766,1.92700871,3887.8,3887.5,3.34722032]
[1760135846967,1.24292482,3887.6,3887.5,3.14762736]
[1760135847200,1.67299771,3887.6,3887.5,2.1174095]
[1760135847367,0.43007289,3887.6,3887.5,2.1174095]
[1760135847553,0.424,3887.6,3887.5,1.24516135]
[1760135847759,0.72795258,3887.6,3887.5,2.47516135]
[1760135848055,0.81757267,3887.6,3887.5,0.36368937]
[1760135848277,1.43157267,3887.6,3887.5,0.36368937]
[1760135848479,0.75433353,3887.6,3887.5,0.16640929]
[1760135848781,1.64547869,3887.6,3887.4,0.98177387]
[1760135848964,0.70595814,3887.5,3886.6,0.47124474]
[1760135849173,1.20076397,3887.4,3886.6,0.47124474]
[1760135849388,0.43007289,3887.3,3886.5,0.70394474]
[1760135849599,0.424,3887.2,3886.5,0.56917033]
[1760135849905,1.29903832,3887.0,3884.9,1.08136088]
[1760135850061,0.38007289,3887.1,3884.9,1.08136088]
[1760135850395,0.14903832,3887.0,3884.9,1.08136088]
[1760135850571,0.14292482,3887.6,3884.9,2.31136088]
[1760135850757,0.21034914,3886.9,3884.9,2.31136088]
[1760135850959,0.13470798,3887.0,3884.9,2.31136088]
[1760135851153,0.14083964,3887.8,3884.9,2.31136088]
[1760135851404,1.24246031,3886.8,3884.9,2.31136088]
[1760135851784,1.29814617,3888.2,3884.9,2.31136088]
[1760135851958,1.28018852,3886.6,3884.9,3.54136088]
[1760135852159,1.28817361,3886.4,3884.9,8.68836088]
[1760135852357,1.28817361,3886.4,3884.9,8.69036088]
[1760135853102,1.21519431,3886.2,3884.9,8.69036088]
[1760135853302,0.337,3886.1,3884.9,9.92036088]
[1760135853586,1.56738078,3886.0,3884.9,8.440711]
[1760135853798,1.25439121,3885.8,3884.9,7.56270211]
[1760135854088,1.24339344,3885.6,3884.9,6.82474147]
[1760135854288,0.14574813,3885.5,3884.9,6.31998479]
[1760135854588,0.14574813,3885.5,3884.8,2.46]
[1760135854894,0.13480409,3885.4,3884.9,0.41991095]
[1760135855056,0.14574813,3885.3,3884.9,0.26295142]
[1760135855260,0.13480409,3885.4,3884.9,5.41085142]
[1760135855591,0.13480409,3885.4,3884.9,5.20603057]
[1760135856087,0.18892426,3885.3,3884.9,5.20603057]
[1760135856279,0.13480409,3885.4,3884.9,5.20603057]
[1760135856280,0.13480409,3885.4,3884.9,6.0899892]
[1760135856478,0.13480409,3885.4,3884.9,6.05417185]
[1760135856682,0.21332565,3885.3,3884.9,5.63160289]
[1760135856880,0.13480409,3885.4,3884.9,5.12526991]
[1760135857096,0.16295636,3885.3,3884.9,4.94143215]
[1760135857393,0.13480409,3885.4,3884.9,4.7319873]
[1760135857560,0.14761663,3885.3,3884.9,5.823284]
[1760135857760,0.14761663,3885.3,3884.9,5.60079825]
[1760135857958,0.14761663,3885.3,3884.9,5.1865808]
[1760135858178,0.77569088,3887.2,3884.9,5.1865808]
[1760135858385,0.2222,3888.6,3884.9,5.1865808]
[1760135858588,0.99760317,3888.6,3884.9,5.1865808]
[1760135858790,0.13473335,3888.5,3884.9,2.46]
[1760135858971,0.13473335,3888.5,3884.9,3.69]
[1760135859560,0.24929042,3888.4,3884.9,3.69]
[1760135859799,0.13473335,3888.5,3884.9,3.69]
[1760135860158,1.28827344,3888.4,3884.9,3.69]
[1760135860362,0.13473335,3888.5,3884.9,4.92]
[1760135860598,0.40461366,3888.5,3884.9,4.92]
[1760135860785,0.31576581,3888.4,3884.9,4.92]
[1760135860968,1.27402943,3888.3,3884.9,4.92]
[1760135861168,1.29814617,3888.2,3884.9,4.92]
[1760135861369,1.20688931,3888.1,3884.9,4.92]
[1760135861569,1.28827344,3888.4,3884.9,4.92]
[1760135861890,1.28827344,3888.4,3884.9,6.15]
[1760135863165,1.28827344,3888.4,3884.9,7.38]
[1760135863359,1.5901646,3888.4,3884.9,7.36834112]
[1760135863592,1.29814617,3888.2,3884.9,7.33211199]
[1760135863863,1.2957501,3888.0,3884.9,7.33211199]
[1760135864062,1.28083964,3887.8,3884.9,7.33211199]
[1760135864282,0.28254116,3887.8,3884.9,7.33211199]
[1760135864486,1.28746009,3887.7,3884.9,8.56211199]
[1760135864682,1.5708146,3888.4,3884.9,8.56211199]
[1760135865199,0.94827344,3888.4,3885.0,0.4419]
[1760135865728,0.19023335,3888.5,3885.0,1.6719]
[1760135865916,1.27402943,3888.3,3885.0,1.23]
[1760135866121,0.13473335,3888.5,3885.0,1.23]
[1760135866122,1.20688931,3888.1,3885.0,1.23]
[1760135866301,0.13473335,3888.5,3885.0,1.23]
[1760135866302,1.20811433,3887.9,3885.0,1.23]
[1760135866501,1.28746009,3887.7,3884.9,3.67059415]
[1760135866804,1.25846267,3887.5,3884.9,3.67059415]
[1760135867003,1.25846267,3887.5,3884.7,0.00208555]
[1760135867004,1.25926283,3887.3,3880.2,0.21622925]
[1760135867216,1.28357329,3884.8,3880.2,0.21622925]
[1760135867424,1.29262954,3885.3,3880.2,0.21622925]
[1760135867608,1.21519431,3886.2,3880.2,0.21622925]
[1760135867935,1.25065532,3885.1,3880.2,0.21622925]
[1760135868505,1.24327197,3884.9,3880.2,1.44622925]
[1760135868709,1.27924526,3884.7,3880.2,1.44622925]
[1760135868905,1.26207067,3884.5,3880.2,1.44622925]
[1760135869112,1.26207067,3884.5,3880.3,0.3959]
[1760135869295,1.2474665,3884.3,3880.3,0.3959]
[1760135869499,1.24410147,3884.1,3880.3,0.3959]
[1760135869731,1.29262954,3885.3,3880.3,0.3959]
[1760135869931,1.23038078,3886.0,3880.3,1.6259]
[1760135870229,1.25065532,3885.1,3880.4,0.3959]
[1760135870431,1.25439121,3885.8,3880.4,0.3959]
[1760135870727,1.21647669,3885.2,3880.4,0.3959]
[1760135871028,1.25151072,3885.0,3880.4,0.3959]
[1760135871241,1.21647669,3885.2,3880.4,1.6259]
[1760135871406,1.28357329,3884.8,3880.4,1.6259]
[1760135871605,1.21643192,3884.6,3880.5,0.3959]
[1760135871939,1.23878046,3884.4,3880.3,0.34861991]
[1760135872144,0.001,3885.3,3880.3,0.34861991]
[1760135872145,1.21272578,3884.2,3880.3,0.34861991]
[1760135872347,1.25523815,3884.0,3880.3,0.34861991]
[1760135872645,1.21324443,3883.8,3880.3,1.57861991]
[1760135872805,1.29941563,3883.6,3880.3,1.57861991]
[1760135873005,1.2693582,3883.4,3880.3,1.57861991]
[1760135873201,1.2727804,3883.2,3880.3,1.57861991]
[1760135873403,1.27200695,3883.0,3880.3,1.57861991]
[1760135873615,1.20826057,3882.8,3880.3,1.57861991]
[1760135873799,1.24584538,3882.6,3880.3,0.49982702]
[1760135874113,1.2026939,3880.2,3876.9,0.4556]
[1760135874299,1.56109899,3880.3,3876.9,0.4556]
[1760135874504,1.24445745,3880.0,3876.9,0.4556]
[1760135874741,1.27822342,3879.8,3876.9,0.4556]
[1760135874922,0.34217046,3879.7,3876.9,0.4556]
[1760135875111,1.21390403,3879.6,3876.9,0.4556]
[1760135875301,0.232,3882.7,3876.9,1.6856]
[1760135875302,1.2482007,3879.4,3876.9,1.6856]
[1760135875642,1.29556216,3879.2,3877.0,0.4556]
[1760135875836,0.232,3882.7,3877.0,0.4556]
[1760135875837,1.2482007,3879.4,3877.0,0.4556]
[1760135876038,1.2482007,3879.4,3876.9,1.23]
[1760135876039,1.27589433,3879.0,3876.9,1.23]
[1760135876244,1.24928961,3878.8,3876.9,1.23]
[1760135876442,0.4453,3879.3,3876.9,1.23]
[1760135876443,0.34764229,3878.7,3876.9,1.23]
[1760135876737,1.71258676,3878.6,3876.9,2.46]
[1760135876928,1.25319263,3878.4,3876.9,2.46]
[1760135877129,0.4453,3880.2,3876.9,2.46]
[1760135877442,0.26172563,3881.8,3877.0,0.4556]
[1760135877604,0.6773,3883.6,3877.0,0.4556]
[1760135877937,1.20397804,3883.5,3877.0,1.6856]
[1760135878238,1.2698221,3883.3,3877.1,0.4556]
[1760135878446,1.28886455,3883.1,3877.1,0.4556]
[1760135878811,1.23472842,3882.9,3877.1,0.4556]
[1760135879016,1.88556057,3882.8,3877.1,0.4556]
[1760135879541,2.24032665,3882.8,3877.1,1.6856]
[1760135879751,1.24584538,3882.6,3877.2,0.4556]
[1760135879953,1.26734818,3882.4,3877.1,1.23]
[1760135880253,1.28769133,3882.2,3876.4,0.4556]
[1760135880409,0.4453,3882.1,3876.4,0.4556]
[1760135880612,1.24657043,3882.0,3876.4,0.4556]
[1760135880814,1.27706988,3881.8,3876.4,1.6856]
[1760135881142,1.24631432,3882.7,3876.5,0.4556]
[1760135881345,1.24657043,3882.0,3876.6,0.01026143]
[1760135881545,1.27706988,3881.8,3876.7,0.4556]
[1760135881843,1.28740187,3881.6,3876.7,0.4556]
[1760135882043,1.27020729,3881.4,3876.7,0.4556]
[1760135882365,0.74058924,3881.5,3876.7,0.4556]
[1760135882366,0.232,3883.6,3876.7,1.6856]
[1760135882561,0.29528924,3884.9,3876.8,0.4556]
[1760135882719,0.29528924,3884.4,3876.8,0.4556]
[1760135882914,0.52728924,3886.0,3876.8,0.4556]
[1760135883146,0.4453,3885.2,3876.8,0.4556]
[1760135883451,1.25065532,3885.1,3876.8,0.4556]
[1760135883656,0.33201165,3885.7,3876.8,3.6056]
[1760135883957,1.25065532,3885.1,3876.8,1.6856]
[1760135884111,1.24327197,3884.9,3876.9,0.4556]
[1760135884317,0.232,3885.6,3876.9,0.4556]
[1760135884318,2.06878827,3884.8,3876.9,0.4556]
[1760135884912,1.72887329,3884.8,3876.9,1.6856]
[1760135885114,1.72887329,3884.8,3877.0,0.4556]
[1760135885657,1.21643192,3884.6,3877.0,0.4556]
[1760135885959,1.23878046,3884.4,3877.0,0.4556]
[1760135886114,0.37425953,3884.3,3877.0,0.4556]
[1760135886318,1.65802578,3884.2,3877.0,1.6856]
[1760135886520,1.25523815,3884.0,3877.1,0.4556]
[1760135886714,1.21324443,3883.8,3877.1,0.4556]
[1760135886938,1.29941563,3883.6,3877.1,0.4556]
[1760135887211,0.232,3883.9,3877.1,0.4556]
[1760135887212,1.2693582,3883.4,3877.1,0.4556]
[1760135887437,1.2727804,3883.2,3877.0,1.23]
[1760135887633,1.27200695,3883.0,3877.0,2.13238885]
[1760135887837,1.20826057,3882.8,3877.0,0.90387789]
[1760135888040,1.24584538,3882.6,3877.0,0.34824777]
[1760135888323,1.26734818,3882.4,3877.0,0.11195591]
[1760135888550,1.28769133,3882.2,3877.0,0.11195591]
[1760135888858,1.24657043,3882.0,3877.0,0.11195591]
[1760135889023,1.27706988,3881.8,3877.0,1.34195591]
[1760135889224,1.28740187,3881.6,3877.0,1.34195591]
[1760135889545,1.27020729,3881.4,3877.1,0.0854]
[1760135889859,1.23792103,3881.2,3877.0,1.34195591]
[1760135890021,1.32095126,3877.1,3877.0,1.34195591]
[1760135890216,1.21478693,3879.1,3877.0,1.34195591]
[1760135890445,1.27822342,3879.8,3877.0,2.57195591]
[1760135890635,1.23716381,3880.7,3877.0,2.57195591]
[1760135890840,1.21390403,3879.6,3877.0,2.57195591]
[1760135891052,1.2482007,3879.4,3877.0,2.3110442]
[1760135891351,1.29556216,3879.2,3877.0,0.53321547]
[1760135891725,1.27589433,3879.0,3876.8,0.4790221]
[1760135891923,1.20407586,3876.7,3876.4,0.90575431]
[1760135892252,1.25463073,3876.5,3876.4,0.66218224]
[1760135892450,1.22002747,3877.5,3876.4,0.66218224]
[1760135892839,0.2218,3880.8,3876.4,0.66218224]
[1760135892840,1.29556216,3879.2,3876.4,0.66218224]
[1760135893040,1.21217009,3880.1,3876.5,0.4675]
[1760135893355,1.68995745,3880.0,3876.5,0.4675]
[1760135893558,1.97863441,3880.0,3876.4,1.89218224]
[1760135893725,1.27822342,3879.8,3876.4,1.61319405]
[1760135894051,0.2218,3880.8,3876.4,1.32839953]
[1760135894052,1.21390403,3879.6,3876.4,1.32839953]
[1760135894256,1.2482007,3879.4,3876.4,1.0478804]
[1760135894433,9.84256761,3875.0,3874.8,1.23]
[1760135894632,9.59266761,3875.0,3874.8,1.23]
[1760135895458,9.47397627,3875.0,3874.8,1.23]
[1760135895769,0.27324991,3874.9,3874.8,1.23]
[1760135895974,9.47397627,3875.0,3874.8,2.46]
[1760135897157,9.38549099,3875.0,3874.8,2.46]
[1760135897362,9.29086817,3875.0,3874.8,3.69]
[1760135897667,9.26769734,3875.0,3874.8,3.69]
[1760135897867,8.86561833,3875.0,3874.8,3.69]
[1760135898660,8.86561833,3875.0,3874.8,4.92]
[1760135899270,8.82192979,3875.0,3874.8,4.92]
[1760135900072,8.82192979,3875.0,3874.8,6.15]
[1760135901073,8.41967526,3875.0,3874.8,6.15]
[1760135901288,8.41967526,3875.0,3874.8,7.38]
[1760135901639,8.75577878,3875.0,3874.8,7.38]
[1760135901874,0.33610352,3874.9,3874.8,7.38]
[1760135902652,0.33610352,3874.9,3874.8,8.61]
[1760135903194,8.41967526,3875.0,3874.8,8.61]
[1760135903490,8.07050072,3875.0,3874.8,8.61]
[1760135904183,7.01174669,3875.0,3874.8,9.84]
[1760135904384,7.01174669,3875.0,3874.9,1.92]
[1760135904590,7.01274669,3875.0,3874.9,1.92]
[1760135904795,6.87789797,3875.0,3874.9,1.92]
[1760135905293,6.87789797,3875.0,3874.8,9.842]
[1760135905479,6.87789797,3875.0,3874.8,11.072]
[1760135906165,6.87789797,3875.0,3874.8,16.2334]
[1760135906762,6.87789797,3875.0,3874.8,17.4634]
[1760135907864,0.38789574,3874.9,3874.8,17.09474119]
[1760135908186,1.6266856,3874.9,3874.8,16.32809563]
[1760135908493,1.6266856,3874.9,3874.8,16.45689563]
[1760135908663,1.6266856,3874.9,3874.8,16.40689563]
[1760135908990,0.38789574,3874.9,3874.8,16.27809563]
[1760135909380,1.6266856,3874.9,3874.8,17.15349684]
[1760135909907,0.38789574,3874.9,3874.8,16.77844576]
[1760135910062,1.5098058,3874.9,3874.8,16.44144334]
[1760135910264,1.23878986,3874.9,3874.8,16.44144334]
[1760135910564,1.54411782,3874.9,3874.8,16.13531218]
[1760135910774,1.54411782,3874.9,3874.8,17.36531218]
[1760135911263,6.87789797,3875.0,3874.8,17.36531218]
[1760135911461,1.23878986,3874.9,3874.8,17.36531218]
[1760135911662,6.87789797,3875.0,3874.8,17.36531218]
[1760135912095,6.87789797,3875.0,3874.8,18.59531218]
[1760135912290,6.22137746,3875.0,3874.8,18.59531218]
[1760135912894,6.09068451,3875.0,3874.8,18.59531218]
[1760135913495,6.09068451,3875.0,3874.8,19.82531218]
[1760135914860,6.09068451,3875.0,3874.8,21.05531218]
[1760135915791,0.36437734,3874.9,3874.8,21.00531218]
[1760135915992,6.0521167,3875.0,3874.8,21.00531218]
[1760135916311,6.0521167,3875.0,3874.8,22.23531218]
[1760135917800,6.0521167,3875.0,3874.8,23.46531218]
[1760135918000,0.30698756,3874.9,3874.8,23.46531218]
[1760135918799,6.0521167,3875.0,3874.8,23.46531218]
[1760135919016,6.0521167,3875.0,3874.9,0.1288]
[1760135919501,6.3812338,3875.0,3874.9,0.1288]
[1760135919707,0.29914057,3874.9,3874.8,24.14116868]
[1760135919908,1.53793043,3874.9,3874.8,11.8812142]
[1760135920205,1.53793043,3874.9,3874.8,11.97862565]
[1760135920421,1.38453799,3874.9,3874.8,11.13055708]
[1760135920586,1.38453799,3874.9,3874.8,10.98480895]
[1760135921098,1.23878986,3874.9,3874.8,10.44966232]
[1760135921400,1.38453799,3874.9,3874.8,10.14695466]
[1760135921700,1.83623799,3874.9,3874.8,11.20901603]
[1760135921873,1.83623799,3874.9,3874.8,10.5770565]
[1760135922071,1.38453799,3874.9,3874.8,10.43130837]
[1760135922274,1.23878986,3874.9,3874.8,10.43130837]
[1760135922481,1.41450654,3874.9,3874.8,10.43130837]
[1760135922712,1.86620654,3874.9,3874.8,10.2274978]
[1760135922899,1.86620654,3874.9,3874.8,11.01261124]
[1760135922900,1.69048986,3874.9,3874.8,11.01261124]
[1760135923207,1.84044135,3874.9,3874.8,10.31267463]
[1760135923572,1.84044135,3874.9,3874.8,6.152]
[1760135923775,1.84044135,3874.9,3874.4,0.002]
[1760135923776,1.24770741,3874.7,3874.4,0.002]
[1760135923976,1.26409689,3874.5,3874.4,0.002]
[1760135924207,1.41140635,3874.5,3874.4,0.002]
[1760135924411,1.86310635,3874.5,3874.4,1.23]
[1760135924577,1.71579689,3874.5,3874.4,0.75619747]
[1760135924773,1.71579689,3874.5,3874.4,0.3699454]
[1760135924978,1.71579689,3874.5,3874.4,0.0623774]
[1760135925196,1.23878986,3874.9,3873.2,1.0969]
[1760135925455,1.23878986,3874.9,3873.3,0.4581]
[1760135925729,1.23878986,3874.9,3873.2,1.0969]
[1760135925927,1.24770741,3874.7,3873.2,2.3269]
[1760135926431,1.23878986,3874.9,3873.3,0.4581]
[1760135926594,1.424098,3874.6,3873.3,0.4581]
[1760135926796,1.23878986,3874.9,3873.3,0.4581]
[1760135927297,1.23878986,3874.9,3873.3,1.23]
[1760135927710,1.23878986,3874.9,3873.3,1.6881]
[1760135928523,1.5000898,3874.9,3873.3,1.6881]
[1760135928741,1.23878986,3874.9,3873.3,2.9181]
[1760135929155,1.24770741,3874.7,3873.4,0.4314]
[1760135929425,6.0521167,3875.0,3873.4,0.4314]
[1760135930024,0.28316765,3874.9,3873.4,1.6614]
[1760135930230,0.27589265,3874.9,3873.4,1.6614]
[1760135930428,1.21608516,3874.8,3873.4,1.6614]
[1760135930637,1.49699918,3874.9,3873.4,1.23]
[1760135930799,1.23472888,3874.6,3873.4,1.23]
[1760135931138,1.23878986,3874.9,3873.5,0.4314]
[1760135931427,6.0521167,3875.0,3873.5,0.4314]
[1760135931640,7.26138043,3875.0,3873.5,0.4314]
[1760135931839,1.22294655,3874.8,3873.5,0.4314]
[1760135932041,6.0521167,3875.0,3873.5,0.4314]
[1760135932727,6.0521167,3875.0,3873.5,1.6614]
[1760135932940,6.0521167,3875.0,3873.5,1.23]
[1760135933150,5.94640419,3875.0,3873.5,1.23]
[1760135933446,5.80637909,3875.0,3873.6,1.44]
[1760135933949,5.37348113,3875.0,3873.5,1.23]
[1760135934128,5.37348113,3875.0,3873.5,2.46]
[1760135935455,5.37348113,3875.0,3873.5,3.69]
[1760135936710,5.27672357,3875.0,3873.6,1.92]
[1760135937114,5.27672357,3875.0,3873.7,0.0078672]
[1760135937432,4.87431059,3875.0,3873.7,0.0078672]
[1760135937636,4.73947281,3875.0,3873.7,0.0078672]
[1760135938040,4.73947281,3875.0,3873.7,1.2378672]
[1760135939221,4.73947281,3875.0,3873.7,2.4678672]
[1760135939520,4.73947281,3875.0,3873.7,2.46]
[1760135939927,4.73947281,3875.0,3873.8,1.44]
[1760135940149,4.73947281,3875.0,3873.9,1.44]
[1760135940347,4.31122057,3875.0,3873.9,1.44]
[1760135940587,4.31122057,3875.0,3873.9,1.23]
[1760135941858,4.29577337,3875.0,3873.9,1.23]
[1760135942195,4.29577337,3875.0,3873.9,2.46]
[1760135943694,4.29577337,3875.0,3873.9,3.69]
[1760135944457,0.03225889,3874.9,3873.9,3.69]
[1760135944865,0.03225889,3874.9,3873.9,4.92]
[1760135945090,0.03225889,3874.9,3873.9,4.547]
[1760135945455,0.03225889,3874.9,3873.9,4.41189833]
[1760135945793,0.03225889,3874.9,3873.9,4.38959833]
[1760135946488,0.03225889,3874.9,3873.9,5.61959833]
[1760135946698,0.4713,3874.8,3873.9,5.61959833]
[1760135946852,0.03226056,3874.7,3873.9,5.61959833]
[1760135947475,0.03226056,3874.7,3873.9,5.14459833]
[1760135947476,0.4713,3874.6,3873.9,5.14459833]
[1760135947676,0.16796222,3874.5,3873.9,2.67369833]
[1760135947864,0.1357,3874.4,3873.9,1.45647599]
[1760135948079,0.16656389,3874.3,3873.9,1.45507599]
[1760135948362,0.1343,3874.2,3873.9,1.45507599]
[1760135948697,1.39417555,3874.1,3873.9,0.23997732]
[1760135948895,1.39417555,3874.1,3873.7,1.48487865]
[1760135949097,0.2143,3873.8,3873.7,2.71487865]
[1760135949396,0.42206805,3873.8,3873.7,2.71487865]
[1760135949599,0.42206805,3873.8,3873.7,1.47946888]
[1760135949773,1.64882067,3873.8,3873.7,1.47946888]
[1760135950095,0.03226805,3873.8,3873.7,1.47946888]
[1760135950264,0.03226555,3874.1,3873.7,1.47946888]
[1760135950463,0.20815889,3874.9,3873.7,1.47946888]
[1760135950696,0.20815889,3874.9,3873.7,2.70946888]
[1760135951668,0.75294655,3874.8,3873.7,2.70946888]
[1760135951996,1.22072608,3874.6,3873.7,2.70946888]
[1760135952188,1.24743119,3874.4,3873.7,3.93946888]
[1760135952384,1.22547658,3874.2,3873.7,3.93946888]
[1760135952599,1.27884344,3874.0,3873.7,3.93946888]
[1760135952766,0.03226722,3873.9,3873.8,0.4688]
[1760135952964,0.03226139,3874.6,3873.8,0.4688]
[1760135953578,0.03226139,3874.6,3873.8,1.6988]
[1760135954096,3.37647337,3875.0,3873.9,0.4688]
[1760135954269,0.00897163,3874.9,3873.9,0.4688]
[1760135954771,3.30388164,3875.0,3873.9,0.4688]
[1760135955094,3.30388164,3875.0,3873.9,1.6988]
[1760135955900,3.30388164,3875.0,3873.9,1.23]
[1760135956200,3.30388164,3875.0,3873.9,2.46]
[1760135957776,3.30388164,3875.0,3873.9,3.692]
[1760135959364,3.22891334,3875.0,3873.9,4.922]
[1760135960186,3.11550311,3875.0,3873.9,4.922]
[1760135960366,3.04495953,3875.0,3873.9,4.922]
[1760135960574,2.97671263,3875.0,3874.0,1.92]
[1760135961200,2.27788714,3875.0,3874.0,1.92]
[1760135961414,2.27408164,3875.0,3874.0,1.92]
[1760135962017,2.13926273,3875.0,3874.0,1.92]
[1760135962308,0.90062738,3875.0,3874.1,0.3141908]
[1760135962512,0.001,3875.4,3874.9,138.21893489]
[1760135962713,0.001,3875.4,3875.1,1.22742365]
[1760135962914,0.77484241,3887.5,3875.1,1.22742365]
[1760135963119,1.2234755,3889.5,3875.3,1.25117422]
[1760135963320,0.6783,3890.0,3875.5,1.25523181]
[1760135963522,0.6783,3890.0,3875.7,1.28833299]
[1760135963701,0.2143,3891.3,3875.9,1.27199579]
[1760135963905,0.10327204,3888.8,3876.1,1.25812003]
[1760135964105,0.464,3890.5,3876.3,1.25536949]
[1760135964280,0.464,3890.5,3876.5,1.20637841]
[1760135964481,0.2143,3891.3,3880.0,1.92]
[1760135964482,0.10324965,3889.7,3880.0,1.92]
[1760135964706,0.464,3889.4,3880.0,3.17417861]
[1760135964986,0.2143,3891.3,3880.0,3.17417861]
[1760135965301,0.10324325,3889.9,3880.0,3.17417861]
[1760135965608,0.465,3891.1,3880.7,1.92]
[1760135965915,0.10322514,3890.5,3880.8,0.02417362]
[1760135966207,0.001,3891.1,3880.8,0.02417362]
[1760135966410,0.001,3891.1,3880.8,1.25417362]
[1760135966733,0.10320995,3891.0,3881.1,1.92]
[1760135966914,0.001,3891.1,3881.1,1.92]
[1760135966915,0.001,3891.1,3881.2,0.02435983]
[1760135967082,0.464,3890.8,3881.3,1.92]
[1760135967412,0.001,3891.1,3881.4,0.02435858]
[1760135967613,0.001,3891.1,3881.5,1.92]
[1760135967813,0.001,3891.1,3881.6,0.02435732]
[1760135968019,0.001,3891.1,3881.7,1.92]
[1760135968184,1.27635423,3889.6,3881.8,0.02435606]
[1760135968385,1.2076465,3889.4,3881.8,5.1522]
[1760135968725,0.38165395,3886.9,3881.4,1.23]
[1760135969015,0.69372705,3885.2,3881.4,1.23]
[1760135969202,0.69372705,3885.2,3881.4,2.46]
[1760135969604,0.001,3886.1,3881.4,2.46]
[1760135969605,0.464,3885.9,3881.4,2.46]
[1760135969917,0.464,3885.2,3881.4,2.46]
[1760135970085,0.81030355,3885.2,3881.4,2.46]
[1760135970280,0.81030355,3885.2,3885.1,0.128]
[1760135970520,0.81030355,3885.2,3881.4,2.215]
[1760135970521,0.128,3884.5,3881.4,2.215]
[1760135970820,0.81030355,3885.2,3881.4,1.74684188]
[1760135970821,0.6783,3884.4,3881.4,1.74684188]
[1760135971024,0.75226279,3884.3,3881.4,1.54067896]
[1760135971226,0.464,3884.2,3881.4,1.54067896]
[1760135971435,0.464,3884.1,3881.4,1.54067896]
[1760135971594,0.464,3884.0,3881.4,1.54067896]
[1760135971787,0.464,3883.9,3881.4,1.54067896]
[1760135972036,0.30866363,3883.9,3881.4,2.77067896]
[1760135972322,1.29547285,3883.7,3881.4,2.77067896]
[1760135972537,1.56187874,3883.6,3881.4,2.77067896]
[1760135972823,0.26178138,3883.6,3881.4,2.77067896]
[1760135973021,0.27441971,3884.4,3881.4,2.77067896]
[1760135973396,0.27441971,3884.4,3881.4,4.00067896]
[1760135973601,0.2515514,3885.2,3881.4,4.00067896]
[1760135973820,1.22918115,3885.0,3881.4,4.00067896]
[1760135974224,1.21545329,3884.8,3881.4,4.00067896]
[1760135974610,1.2877738,3884.6,3881.4,5.23067896]
[1760135974926,1.29656913,3885.2,3881.4,5.23067896]
[1760135975093,1e-08,3885.3,3881.4,5.23067896]
[1760135975423,1.76056913,3885.2,3881.4,5.23067896]
[1760135975624,1.22918115,3885.0,3881.4,5.23067896]
[1760135975925,1.21545329,3884.8,3881.4,5.23067896]
[1760135976130,1.2877738,3884.6,3881.4,6.46067896]
[1760135976326,1.20905312,3884.4,3881.4,6.23456481]
[1760135976513,1.28522671,3884.2,3881.4,6.23456481]
[1760135976827,1.2292744,3884.0,3881.4,5.55626481]
[1760135977026,1.26903517,3883.8,3881.4,5.55626481]
[1760135977323,1.2659307,3883.6,3881.4,3.01441003]
[1760135977528,1.20279445,3883.4,3881.4,2.1627585]
[1760135977826,1.21608043,3883.2,3881.4,2.1627585]
[1760135978041,1.26676891,3883.0,3881.4,1.81021075]
[1760135978243,1.29457167,3882.8,3881.4,1.49143007]
[1760135978410,1.29656913,3885.2,3881.4,1.49143007]
[1760135978612,1.26809815,3884.3,3881.4,1.96133007]
[1760135978816,1e-08,3885.3,3881.4,1.96133007]
[1760135978817,1e-08,3885.3,3881.4,3.19133007]
[1760135979017,0.77559562,3885.1,3881.4,3.19133007]
[1760135979223,1.22918115,3885.0,3881.4,3.19133007]
[1760135979546,0.77559562,3885.1,3881.4,2.72143007]
[1760135979925,1.22918115,3885.0,3881.4,2.72143007]
[1760135980131,1.22918115,3885.0,3881.4,3.95143007]
[1760135980314,1.22918115,3885.0,3884.9,0.128]
[1760135980514,1.29201838,3884.1,3881.4,3.95143007]
[1760135980743,1.28522671,3884.2,3881.4,3.24069864]
[1760135981046,1.21545329,3884.8,3881.4,3.24069864]
[1760135981228,1.2292744,3884.0,3881.4,2.72258315]
[1760135981424,1.26903517,3883.8,3881.4,3.57036669]
[1760135981641,1.2659307,3883.6,3881.4,1.60179294]
[1760135981836,1.21545329,3884.8,3881.4,1.60179294]
[1760135982027,1.29570461,3884.5,3881.4,1.60179294]
[1760135982350,1.21545329,3884.8,3881.4,1.60179294]
[1760135982643,1.26809815,3884.3,3881.4,1.60179294]
[1760135982846,0.13485461,3884.7,3881.4,2.83179294]
[1760135983216,0.13485461,3884.7,3881.5,0.4699]
[1760135983947,1.2877738,3884.6,3881.5,0.4699]
[1760135984150,0.13485461,3884.7,3881.5,1.6999]
[1760135984350,0.13485461,3884.7,3881.6,0.4699]
[1760135984661,0.128,3884.9,3881.6,0.4699]
[1760135984950,0.2272,3884.9,3881.6,0.4699]
[1760135985246,0.2272,3884.8,3881.5,1.23]
[1760135985450,0.0992,3884.7,3881.5,2.46]
[1760135985819,0.0992,3884.7,3881.5,2.9299]
[1760135986020,0.128,3884.8,3881.6,0.4699]
[1760135986420,0.128,3884.9,3881.6,0.4699]
[1760135986821,0.128,3884.9,3881.6,1.6999]
[1760135987021,1.20697965,3884.7,3881.7,0.4699]
[1760135987335,1.21545329,3884.8,3881.7,0.4699]
[1760135988062,0.128,3884.9,3881.7,0.4699]
[1760135988264,0.128,3884.9,3881.7,1.6999]
[1760135988420,0.128,3884.9,3881.8,0.4699]
[1760135988620,1.21545329,3884.8,3881.8,0.4699]
[1760135988821,1.21545329,3884.8,3881.9,0.2179]
[1760135989053,0.1347705,3884.8,3882.0,0.4508]
[1760135989422,1.20697965,3884.7,3882.0,0.4508]
[1760135989641,1.63864958,3884.7,3882.0,1.6808]